fUSD/lending_fUSD_20250421
["ID","MTS","AMOUNT","RATE_DAILY","PERIOD"]
[358505687,1745219453938,-150.0,0.00069581,120]
[358505688,1745219453947,-1096.0,0.00069589,120]
[358505689,1745219453957,-428.0,0.00069589,120]
[358505690,1745219453966,-500.0,0.00069589,120]
[358505691,1745219453976,-1388.58,0.00069589,120]
[358505692,1745219453985,-936.6,0.00069589,120]
[358505693,1745219453995,-262.24961466,0.00069589,120]
[358505694,1745219454004,-500.0,0.00069589,120]
[358505695,1745219454014,-930.49,0.00069589,120]
[358505696,1745219454023,-500.0,0.00069589,120]
[358505697,1745219454032,-500.0,0.00069589,120]
[358505698,1745219454042,-500.0,0.00069589,120]
[358505699,1745219454051,-500.0,0.00069589,120]
[358505700,1745219454061,-369.22610651,0.00069589,120]
[358505701,1745219454070,-743.91,0.00069589,120]
[358505702,1745219454080,-500.0,0.00069589,120]
[358505703,1745219454089,-500.0,0.00069589,120]
[358505704,1745219454099,-500.0,0.00069589,120]
[358505705,1745219454108,-563.49,0.00069589,120]
[358505706,1745219454118,-500.0,0.00069589,120]
[358505707,1745219454127,-500.0,0.00069589,120]
[358505708,1745219454138,-282.76732723,0.00069589,120]
[358505709,1745219454148,-899.58,0.00069589,120]
[358505710,1745219454158,-500.0,0.00069589,120]
[358505711,1745219454167,-500.0,0.00069589,120]
[358505712,1745219454177,-500.0,0.00069589,120]
[358505713,1745219454187,-500.0,0.00069589,120]
[358505714,1745219454196,-793.36,0.00069589,120]
[358505715,1745219454206,-1360.42,0.00069589,2]
[358505716,1745219454215,-592.02,0.00069589,120]
[358505717,1745219454225,-500.0,0.00069589,120]
[358505718,1745219454235,-500.0,0.00069589,120]
[358505719,1745219454245,-500.0,0.00069589,120]
[358505720,1745219454255,-500.0,0.00069589,120]
[358505721,1745219454264,-500.0,0.00069589,120]
[358505722,1745219454273,-5933.52,0.00069589,7]
[358505723,1745219454283,-565.36,0.00069589,120]
[358505724,1745219454293,-7065.6277704,0.000696,120]
[358505725,1745219454302,-736.75,0.00069607,2]
[358505726,1745219454313,-150.0,0.00069658,120]
[358505727,1745219454322,-1056.75713602,0.000697,120]
[358505728,1745219454334,-150.0,0.00069705,120]
[358505729,1745219454343,-150.0,0.00069705,120]
[358505730,1745219454352,-150.0,0.00069746,120]
[358505731,1745219454362,-251.07,0.000698,120]
[358505732,1745219454371,-800.44508482,0.000698,90]
[358505733,1745219454381,-174.24,0.000698,60]
[358505734,1745219454390,-150.0,0.00069812,120]
[358505735,1745219454400,-150.0,0.00069836,120]
[358505736,1745219454409,-150.0,0.00069848,120]
[358505737,1745219454419,-150.0,0.0006999,120]
[358505738,1745219454429,-150.0,0.0006999,120]
[358505739,1745219454439,-196.84685729,0.0006999,120]
[358505740,1745219454449,-1000.0,0.00069999,120]
[358505741,1745219454458,-300.0,0.0007,7]
[358505742,1745219454468,-569.000001,0.0007,2]
[358505743,1745219454478,-1576.09286319,0.0007,120]
[358505744,1745219454487,-2006.28791182,0.0007,30]
[358505745,1745219454496,-200.0,0.0007,120]
[358505746,1745219454506,-2057.5691257,0.0007,120]
[358505747,1745219454515,-1542.79160407,0.0007,10]
[358505748,1745219454524,-340.80460082,0.0007,120]
[358505749,1745219454534,-200.0,0.0007,120]
[358505750,1745219454543,-200.0,0.0007,120]
[358505751,1745219454553,-521.78,0.0007,120]
[358505752,1745219454562,-240.0,0.0007,120]
[358505753,1745219454571,-378.0,0.0007,120]
[358505754,1745219454581,-2000.0,0.0007,120]
[358505755,1745219454592,-2720.73816765,0.00070022,15]
[358505756,1745219454601,-648.94718772,0.00070022,15]
[358505757,1745219454611,-990.68,0.00070039,120]
[358505758,1745219454620,-151.0,0.0007004,120]
[358505759,1745219454630,-501.46849,0.0007004,120]
[358505760,1745219454639,-501.46849,0.0007004,120]
[358505761,1745219454649,-150.0,0.00070043,120]
[358505762,1745219454658,-151.0,0.00070088,120]
[358505763,1745219454668,-151.0,0.00070088,120]
[358505764,1745219454678,-150.0,0.00070098,120]
[358505765,1745219454688,-150.0,0.00070132,120]
[358505766,1745219454697,-519.65909784,0.00070136,120]
[358505767,1745219454707,-500.0,0.00070136,120]
[358505768,1745219454717,-1388.58,0.00070136,120]
[358505769,1745219454726,-936.6,0.00070136,120]
[358505770,1745219454740,-500.0,0.00070136,120]
[358505771,1745219454750,-930.49,0.00070136,120]
[358505772,1745219454760,-500.0,0.00070136,120]
[358505773,1745219454769,-500.0,0.00070136,120]
[358505774,1745219454780,-500.0,0.00070136,120]
[358505775,1745219454790,-500.0,0.00070136,120]
[358505776,1745219454800,-743.91,0.00070136,120]
[358505777,1745219454810,-500.0,0.00070136,120]
[358505778,1745219454820,-516.95326051,0.00070136,120]
[358505779,1745219454830,-500.0,0.00070136,120]
[358505780,1745219454839,-563.49,0.00070136,120]
[358505781,1745219454849,-500.0,0.00070136,120]
[358505782,1745219454859,-500.0,0.00070136,120]
[358505783,1745219454870,-899.58,0.00070136,120]
[358505784,1745219454880,-500.0,0.00070136,120]
[358505785,1745219454889,-500.0,0.00070136,120]
[358505786,1745219454899,-500.0,0.00070136,120]
[358505787,1745219454909,-500.0,0.00070136,120]
[358505788,1745219454919,-793.36,0.00070136,120]
[358505789,1745219454928,-1360.42,0.00070136,2]
[358505790,1745219454938,-592.02,0.00070136,120]
[358505791,1745219454948,-500.0,0.00070136,120]
[358505792,1745219454958,-433.57672871,0.00070136,120]
[358505793,1745219454968,-500.0,0.00070136,120]
[358505794,1745219454977,-579.08705253,0.00070136,120]
[358505795,1745219454987,-500.0,0.00070136,120]
[358505796,1745219454996,-5933.52,0.00070136,7]
[358505797,1745219455006,-565.36,0.00070136,120]
[358505798,1745219455015,-1096.0,0.00070137,120]
[358505799,1745219455025,-428.0,0.00070137,120]
[358505800,1745219455035,-42021.74261758,0.0007015,2]
[358505801,1745219455045,-157.580309,0.000702,2]
[358505802,1745219455054,-160.227255,0.000702,2]
[358505803,1745219455063,-200.0,0.00070274,14]
[358505804,1745219455074,-204.44120616,0.00070274,14]
[358505805,1745219455083,-1070.0,0.00070274,120]
[358505806,1745219455093,-150.0,0.00070274,120]
[358505807,1745219455103,-150.0,0.00070274,120]
[358505808,1745219455112,-150.0,0.00070274,120]
[358505809,1745219455121,-150.0,0.00070274,120]
[358505810,1745219455131,-211.0,0.0007033,30]
[358505811,1745219455141,-209.0,0.0007033,30]
[358505812,1745219455150,-212.0,0.0007033,30]
[358505813,1745219455159,-209.0,0.0007033,30]
[358505814,1745219455169,-211.0,0.0007033,30]
[358505815,1745219455178,-150.0,0.00070417,120]
[358505816,1745219455187,-150.0,0.0007045,120]
[358505817,1745219455197,-150.0,0.00070506,120]
[358505818,1745219455207,-150.0,0.00070559,120]
[358505819,1745219455216,-150.0,0.00070559,120]
[358505820,1745219455226,-304.09676106,0.0007057,120]
[358505821,1745219455235,-204.449296,0.00070624,120]
[358505822,1745219455245,-1388.58,0.00070684,120]
[358505823,1745219455254,-936.6,0.00070684,120]
[358505824,1745219455264,-500.0,0.00070684,120]
[358505825,1745219455274,-930.49,0.00070684,120]
[358505826,1745219455284,-471.06030672,0.00070684,120]
[358505827,1745219455294,-500.0,0.00070684,120]
[358505828,1745219455304,-500.0,0.00070684,120]
[358505829,1745219455315,-500.0,0.00070684,120]
[358505830,1745219455326,-743.91,0.00070684,120]
[358505831,1745219455336,-500.0,0.00070684,120]
[358505832,1745219455347,-500.0,0.00070684,120]
[358505833,1745219455357,-563.49,0.00070684,120]
[358505834,1745219455367,-500.0,0.00070684,120]
[358505835,1745219455376,-500.0,0.00070684,120]
[358505836,1745219455387,-899.58,0.00070684,120]
[358505837,1745219455396,-500.0,0.00070684,120]
[358505838,1745219455406,-500.0,0.00070684,120]
[358505839,1745219455415,-500.0,0.00070684,120]
[358505840,1745219455521,-500.0,0.00070684,120]
[358505841,1745219455533,-793.36,0.00070684,120]
[358505842,1745219455542,-1360.42,0.00070684,2]
[358505843,1745219455551,-592.02,0.00070684,120]
[358505844,1745219455561,-500.0,0.00070684,120]
[358505845,1745219455570,-500.0,0.00070684,120]
[358505846,1745219455580,-500.0,0.00070684,120]
[358505847,1745219455590,-5933.52,0.00070684,7]
[358505848,1745219455599,-565.36,0.00070684,120]
[358505849,1745219455608,-1096.0,0.00070685,120]
[358505850,1745219455617,-428.0,0.00070685,120]
[358505851,1745219455627,-150.0,0.00070701,120]
[358505852,1745219455635,-150.0,0.00070737,120]
[358505853,1745219455644,-350.0,0.000708,90]
[358505854,1745219455654,-150.0,0.00070803,120]
[358505855,1745219455663,-150.0,0.00070843,120]
[358505856,1745219455673,-150.0,0.00070843,120]
[358505857,1745219455682,-150.0,0.00070891,120]
[358505858,1745219455691,-150.0,0.00070895,120]
[358505859,1745219455700,-166.66,0.00070897,2]
[358505860,1745219455709,-500.0,0.00070958,120]
[358505861,1745219455719,-150.0,0.00070968,120]
[358505862,1745219455728,-150.0,0.00070986,120]
[358505863,1745219455741,-278.83920728,0.00071,120]
[358505864,1745219455750,-1100.0,0.00071,120]
[358505865,1745219455759,-200.0,0.00071,120]
[358505866,1745219455768,-150.0,0.00071042,120]
[358505867,1745219455779,-150.0,0.00071128,120]
[358505868,1745219455789,-150.0,0.00071128,120]
[358505869,1745219455798,-150.0,0.00071155,120]
[358505870,1745219455809,-151.0,0.00071183,120]
[358505871,1745219455818,-151.0,0.00071183,120]
[358505872,1745219455827,-150.0,0.00071199,120]
[358505873,1745219455838,-1388.58,0.00071232,120]
[358505874,1745219455847,-936.6,0.00071232,120]
[358505875,1745219455857,-500.0,0.00071232,120]
[358505876,1745219455866,-930.49,0.00071232,120]
[358505877,1745219455876,-500.0,0.00071232,120]
[358505878,1745219455884,-500.0,0.00071232,120]
[358505879,1745219455894,-500.0,0.00071232,120]
[358505880,1745219455903,-743.91,0.00071232,120]
[358505881,1745219455913,-164.11269054,0.00071232,120]
[358505882,1745219455922,-500.0,0.00071232,120]
[358505883,1745219455932,-563.49,0.00071232,120]
[358505884,1745219455941,-500.0,0.00071232,120]
[358505885,1745219455951,-500.0,0.00071232,120]
[358505886,1745219455960,-899.58,0.00071232,120]
[358505887,1745219455969,-500.0,0.00071232,120]
[358505888,1745219455978,-500.0,0.00071232,120]
[358505889,1745219455988,-500.0,0.00071232,120]
[358505890,1745219455997,-484.23844681,0.00071232,120]
[358505891,1745219456007,-793.36,0.00071232,120]
[358505892,1745219456017,-1360.42,0.00071232,2]
[358505893,1745219456028,-592.02,0.00071232,120]
[358505894,1745219456039,-500.0,0.00071232,120]
[358505895,1745219456049,-500.0,0.00071232,120]
[358505896,1745219456059,-500.0,0.00071232,120]
[358505897,1745219456070,-5933.52,0.00071232,7]
[358505898,1745219456079,-565.36,0.00071232,120]
[358505899,1745219456089,-500.0,0.00071232,2]
[358505900,1745219456098,-1096.0,0.00071232,120]
[358505901,1745219456107,-428.0,0.00071232,120]
[358505902,1745219456118,-150.0,0.0007127,120]
[358505903,1745219456128,-54646.08019774,0.00071402,2]
[358505904,1745220308478,602830.76742069,0.0002,2]
[358505907,1745220319968,177.46792926,9e-05,2]
[358505908,1745220328081,329.29148111,0.00011,2]
[358505909,1745220336938,3647.95376314,9e-05,2]
[358505910,1745220355876,807.55697892,6.94e-05,2]
[358505911,1745220368417,1774.23286315,8e-05,2]
[358505912,1745220391909,1974.74925401,0.00015,2]
[358505913,1745220434255,1792.92181784,0.00015,2]
[358505914,1745220436313,450.0,0.00017,2]
[358505915,1745220437392,500.0,0.00019,2]
[358505916,1745220437736,10051.47920592,0.00015,2]
[358505917,1745220438465,196.39246326,0.00021,2]
[358505918,1745220438491,353.60753674,0.00021,2]
[358505919,1745220443445,-296.77160747,0.00048,30]
[358505920,1745220444653,250.8395806,0.000101,2]
[358505921,1745220451425,480.60932832,0.0001,2]
[358505922,1745220452268,-250.0,0.00043769,2]
[358505923,1745220452291,-41.63813106,0.00046916,2]
[358505924,1745220479321,14268.56953148,0.0001,2]
[358505925,1745220499792,200.0,0.0001634,2]
[358505926,1745220501485,194.65874869,0.000135,2]
[358505927,1745220511293,378.11320709,7.888e-05,2]
[358505928,1745220525380,258.99508731,0.000107,2]
[358505950,1745220631784,-151.0,0.00036734,2]
[358505952,1745220631794,-151.0,0.00036734,2]
[358505954,1745220631804,-996.10479412,0.000425,90]
[358505956,1745220631813,-579.70309654,0.00045456,2]
[358505958,1745220631823,-592.45469495,0.00045556,10]
[358505960,1745220631832,-579.70309654,0.00046816,2]
[358505961,1745220631841,-436.4646513,0.00046916,2]
[358505962,1745220632003,-238.72449639,0.00046916,2]
[358505963,1745220632015,-834.201963,0.0004776,2]
[358505964,1745220632028,-703.22839253,0.00048,30]
[358505965,1745220632040,-441.98512548,0.00048297,120]
[358505966,1745220632053,-194.4254207,0.00048358,2]
[358505967,1745220632065,-150.99,0.00048358,2]
[358505968,1745220632076,-152.85,0.000485,45]
[358505969,1745220632086,-152.85,0.000485,45]
[358505971,1745220632096,-550.0,0.0004853,5]
[358505973,1745220632108,-300.0,0.0004853,5]
[358505975,1745220632119,-231.06428901,0.00048531,30]
[358505978,1745220632133,-2400.39369181,0.00048531,30]
[358505980,1745220632144,-438.00383303,0.00048531,10]
[358505982,1745220632154,-572.27746956,0.00048531,30]
[358505984,1745220632166,-4283.84687383,0.00048531,30]
[358505987,1745220632180,-1312.82074613,0.00048531,30]
[358505989,1745220632191,-500.0,0.00048739,30]
[358505991,1745220632203,-1199.80070213,0.000495,30]
[358505994,1745220632222,-2770.19929787,0.000495,30]
[358505996,1745220632232,-500.0,0.00049739,30]
[358505998,1745220632243,-185.0029851,0.00049973,10]
[358506000,1745220632254,-156.59082707,0.00049973,10]
[358506003,1745220632264,-504.40899003,0.00049973,10]
[358506005,1745220632275,-500.0,0.00049973,10]
[358506007,1745220632285,-224.974,0.00049999,88]
[358506009,1745220632296,-550.0,0.00049999,9]
[358506011,1745220632306,-5792.15463485,0.0005,120]
[358506013,1745220632320,-4167.12112149,0.0005,120]
[358506045,1745220637965,-1608.80189384,0.0005,120]
[358506052,1745220638019,-884.93,0.0005,120]
[358506054,1745220638033,-486.09,0.0005,120]
[358506057,1745220638047,-448.80366687,0.0005,120]
[358506060,1745220638067,-86472.4936239,0.0005,120]
[358506062,1745220638077,-1000.0,0.00050826,120]
[358506064,1745220638088,-152.86,0.00050843,120]
[358506066,1745220638100,-801.31,0.00050845,2]
[358506068,1745220638112,-716.52,0.00050905,2]
[358506070,1745220638127,-1455.97,0.00050917,2]
[358506073,1745220638138,-177.97,0.00050929,2]
[358506075,1745220638149,-150.0,0.00051013,7]
[358506077,1745220638162,-2634.59,0.00051027,2]
[358506079,1745220638172,-500.0,0.00051191,60]
[358506081,1745220638182,-1061.49,0.00051224,2]
[358506083,1745220638194,-200.0,0.0005143,2]
[358506084,1745220638206,-770.0,0.00051469,10]
[358506085,1745220638216,-500.0,0.00052091,60]
[358506086,1745220638226,-161.95,0.0005231,2]
[358506087,1745220638238,-500.0,0.00052523,60]
[358506088,1745220638249,-12393.61,0.00052654,2]
[358506089,1745220638260,-500.0,0.00052783,60]
[358506090,1745220638272,-500.0,0.00052899,60]
[358506091,1745220638282,-722.17,0.00052964,2]
[358506092,1745220638292,-710.89,0.00053015,2]
[358506093,1745220638302,-500.0,0.00053243,60]
[358506094,1745220638312,-352.9,0.00053292,2]
[358506095,1745220638323,-500.0,0.00053314,60]
[358506096,1745220638334,-500.0,0.00053676,60]
[358506097,1745220638343,-500.0,0.00053981,60]
[358506098,1745220638353,-293.14,0.0005403,2]
[358506099,1745220638362,-166.66,0.00054488,2]
[358506100,1745220638372,-180.0,0.00054585,10]
[358506101,1745220638383,-514.9945,0.0005469,2]
[358506102,1745220638393,-10974.8117,0.0005469,2]
[358506103,1745220638404,-1000.0,0.0005469,2]
[358506105,1745220638416,-644.88590683,0.00054695,15]
[358506107,1745220638428,-214.9844,0.000547,2]
[358506108,1745220638438,-1000.0,0.000547,2]
[358506109,1745220638447,-152.85,0.000547,54]
[358506110,1745220638456,-152.85,0.000547,54]
[358506111,1745220638465,-152.85,0.000547,54]
[358506112,1745220638475,-152.85,0.000547,54]
[358506113,1745220638486,-8277.1926,0.000547,2]
[358506114,1745220638496,-602.71137467,0.00054773,10]
[358506115,1745220638506,-628.10016536,0.00054773,10]
[358506116,1745220638516,-509.00395555,0.00054773,10]
[358506117,1745220638527,-502.62779402,0.00054773,10]
[358506118,1745220638537,-511.12929153,0.00054773,10]
[358506119,1745220638548,-510.23817171,0.00054773,10]
[358506120,1745220638559,-179576.464876,0.0005479,4]
[358506122,1745220638569,-500.0,0.00054795,120]
[358506123,1745220638579,-500.0,0.00054795,120]
[358506124,1745220638589,-500.0,0.00054795,120]
[358506125,1745220638599,-500.0,0.00054795,120]
[358506127,1745220638608,-595.28475641,0.00054795,120]
[358506128,1745220638618,-238.54708917,0.00054799,120]
[358506129,1745220638628,-500.0,0.00054799,120]
[358506130,1745220638638,-234.54146448,0.00054799,120]
[358506132,1745220638648,-500.0,0.00054799,120]
[358506133,1745220638658,-1158.22165961,0.00054799,120]
[358506134,1745220638670,-277665.86480464,0.000548,120]
[358506136,1745220638680,-653.28509302,0.000548,26]
[358506138,1745220638691,-2550.28092427,0.000549,15]
[358506139,1745220638700,-151.0,0.00055,120]
[358506140,1745220638711,-722.17,0.00055228,2]
[358506141,1745220638721,-176.65,0.00055261,120]
[358506142,1745220638731,-424.38734791,0.00055579,120]
[358506143,1745220638741,-151.0,0.00056265,120]
[358506144,1745220638751,-166.66,0.00056736,2]
[358506145,1745220638762,-500.0,0.00056799,120]
[358506146,1745220638772,-644.88590681,0.00056884,15]
[358506147,1745220638782,-2550.2809242,0.00057067,15]
[358506148,1745220638792,-498.24907148,0.00057174,120]
[358506149,1745220638803,-1000.0,0.00057179,120]
[358506150,1745220638813,-722.17,0.00057492,2]
[358506151,1745220638824,-151.0,0.0005753,120]
[358506152,1745220638834,-500.0,0.00058143,120]
[358506153,1745220638844,-150.0,0.0005823,30]
[358506154,1745220638854,-150.0,0.0005823,30]
[358506155,1745220638865,-150.0,0.0005823,30]
[358506156,1745220638875,-150.0,0.0005823,30]
[358506157,1745220638886,-350.68,0.0005823,30]
[358506158,1745220638896,-350.68,0.0005823,30]
[358506159,1745220638907,-350.68,0.0005823,30]
[358506160,1745220638917,-346.84,0.0005823,30]
[358506161,1745220638928,-827.42,0.0005823,30]
[358506162,1745220638938,-449.47,0.00058237,30]
[358506163,1745220638948,-168.38,0.00058237,30]
[358506164,1745220638958,-701.36,0.00058237,30]
[358506165,1745220638969,-417.31,0.00058237,30]
[358506166,1745220638979,-449.47,0.00058237,30]
[358506167,1745220638990,-151.15,0.00058237,30]
[358506168,1745220639000,-690.59,0.00058237,30]
[358506169,1745220639010,-500.0,0.00058275,120]
[358506170,1745220639022,-500.0,0.00058296,120]
[358506171,1745220639032,-151.0,0.00058795,120]
[358506172,1745220639043,-17162.03185085,0.000588,120]
[358506173,1745220639054,-166.66,0.00058984,2]
[358506174,1745220639065,-644.88590681,0.00059074,15]
[358506175,1745220639075,-500.0,0.00059133,120]
[358506176,1745220639086,-2550.2809242,0.00059233,15]
[358506177,1745220639096,-500.0,0.00059237,120]
[358506178,1745220639107,-500.0,0.00059407,120]
[358506179,1745220639117,-722.17,0.00059756,2]
[358506180,1745220639130,-166.766776,0.00059794,2]
[358506181,1745220639140,-421.05679157,0.0006,120]
[358506182,1745220639150,-2343.07931117,0.0006,7]
[358506183,1745220639161,-151.0,0.00060059,120]
[358506184,1745220639171,-500.0,0.00060192,120]
[358506185,1745220639182,-500.0,0.00060701,120]
[358506186,1745220639194,-500.0,0.00060899,120]
[358506187,1745220639206,-152.85,0.00061,63]
[358506188,1745220639216,-152.85,0.00061,63]
[358506189,1745220639398,-152.85,0.00061,63]
[358506190,1745220639407,-152.85,0.00061,63]
[358506191,1745220639417,-166.66,0.00061232,2]
[358506192,1745220639426,-644.88590681,0.00061263,15]
[358506193,1745220639435,-237.80487489,0.00061324,120]
[358506194,1745220639445,-2550.2809242,0.000614,15]
[358506195,1745220639455,-500.0,0.00061638,120]
[358506196,1745220639464,-150.0,0.000619,2]
[358506197,1745220639474,-722.17,0.0006202,2]
[358506198,1745220639483,-3900.0,0.000628,22]
[358506199,1745220639493,-7800.0,0.000629,22]
[358506200,1745220639503,-88888.0,0.00062913,120]
[358506201,1745220639513,-866.5532481,0.00062913,45]
[358506202,1745220639523,-166.766776,0.00062997,3]
[358506203,1745220639533,-500.0,0.00063002,60]
[358506204,1745220639542,-682.65744115,0.00063002,120]
[358506205,1745220639552,-745.8537,0.00063002,120]
[358506206,1745220639561,-500.0,0.0006301,120]
[358506207,1745220639572,-3313.03291565,0.00063012,2]
[358506208,1745220639582,-573.61179673,0.00063012,60]
[358506209,1745220639592,-500.0,0.00063012,60]
[358506210,1745220639602,-1000.0,0.00063013,2]
[358506211,1745220639611,-1000.0,0.00063013,2]
[358506212,1745220639621,-1000.0,0.00063013,2]
[358506213,1745220639631,-1000.0,0.00063013,2]
[358506214,1745220639640,-1000.0,0.00063013,2]
[358506215,1745220639650,-1000.0,0.00063013,2]
[358506216,1745220639659,-1000.0,0.00063013,2]
[358506217,1745220639668,-1000.0,0.00063013,2]
[358506218,1745220639677,-1000.0,0.00063013,2]
[358506219,1745220639687,-1000.0,0.00063013,2]
[358506220,1745220639695,-1000.0,0.00063013,2]
[358506221,1745220639704,-1000.0,0.00063013,2]
[358506223,1745220639714,-1000.0,0.00063013,2]
[358506224,1745220639722,-1000.0,0.00063013,2]
[358506225,1745220639731,-1000.0,0.00063013,2]
[358506226,1745220639741,-1000.0,0.00063013,2]
[358506227,1745220639750,-1000.0,0.00063013,2]
[358506228,1745220639759,-1000.0,0.00063013,2]
[358506229,1745220639768,-1000.0,0.00063013,2]
[358506230,1745220639777,-1000.0,0.00063013,2]
[358506231,1745220639786,-1000.0,0.00063013,2]
[358506232,1745220639796,-1000.0,0.00063013,2]
[358506233,1745220639805,-1000.0,0.00063013,2]
[358506234,1745220639814,-1000.0,0.00063013,2]
[358506235,1745220639823,-1000.0,0.00063013,2]
[358506236,1745220639832,-1000.0,0.00063013,2]
[358506237,1745220639841,-1000.0,0.00063013,2]
[358506238,1745220639850,-1000.0,0.00063013,2]
[358506239,1745220639859,-1000.0,0.00063013,2]
[358506240,1745220639869,-1000.0,0.00063013,2]
[358506241,1745220639878,-1000.0,0.00063013,2]
[358506242,1745220639888,-1000.0,0.00063013,2]
[358506243,1745220639897,-1000.0,0.00063013,2]
[358506244,1745220639906,-1000.0,0.00063013,2]
[358506245,1745220639916,-1000.0,0.00063013,2]
[358506246,1745220639925,-1000.0,0.00063013,2]
[358506247,1745220639935,-1000.0,0.00063013,2]
[358506248,1745220639945,-1000.0,0.00063013,2]
[358506251,1745220639954,-1000.0,0.00063013,2]
[358506253,1745220639964,-1000.0,0.00063013,2]
[358506255,1745220639973,-1000.0,0.00063013,2]
[358506257,1745220639983,-1000.0,0.00063013,2]
[358506259,1745220639993,-1000.0,0.00063013,2]
[358506261,1745220640002,-1000.0,0.00063013,2]
[358506263,1745220640012,-1000.0,0.00063013,2]
[358506265,1745220640021,-1000.0,0.00063013,2]
[358506267,1745220640031,-1000.0,0.00063013,2]
[358506268,1745220640040,-1000.0,0.00063013,2]
[358506270,1745220640049,-1000.0,0.00063013,2]
[358506271,1745220640058,-1000.0,0.00063013,2]
[358506272,1745220640068,-1000.0,0.00063013,2]
[358506273,1745220640078,-1000.0,0.00063013,2]
[358506274,1745220640087,-1000.0,0.00063013,2]
[358506275,1745220640097,-1000.0,0.00063013,2]
[358506276,1745220640106,-917.0,0.00063013,2]
[358506277,1745220640116,-1000.0,0.00063013,2]
[358506278,1745220640129,-1000.0,0.00063013,2]
[358506279,1745220640139,-500.0,0.00063013,3]
[358506280,1745220640148,-517.81460755,0.00063013,120]
[358506281,1745220640158,-437.23994443,0.00063013,120]
[358506282,1745220640169,-524.84952752,0.00063013,120]
[358506283,1745220640178,-500.0,0.00063013,120]
[358506284,1745220640187,-500.0,0.00063013,120]
[358506285,1745220640196,-500.0,0.00063013,120]
[358506286,1745220640208,-500.0,0.00063013,120]
[358506287,1745220640218,-553.68960114,0.00063013,120]
[358506288,1745220640227,-500.0,0.00063013,120]
[358506289,1745220640235,-517.07906823,0.00063013,120]
[358506290,1745220640245,-565.56746368,0.00063013,120]
[358506291,1745220640254,-506.63485367,0.00063013,120]
[358506292,1745220640264,-543.9556144,0.00063013,120]
[358506293,1745220640273,-500.0,0.00063013,120]
[358506294,1745220640282,-555.82582885,0.00063013,120]
[358506295,1745220640291,-500.0,0.00063013,120]
[358506296,1745220640301,-500.0,0.00063013,120]
[358506297,1745220640310,-505.39295571,0.00063013,120]
[358506298,1745220640319,-530.09584812,0.00063013,120]
[358506299,1745220640328,-500.0,0.00063013,120]
[358506300,1745220640337,-540.04179951,0.00063013,120]
[358506301,1745220640346,-407.45219782,0.00063013,120]
[358506302,1745220640355,-517.25861802,0.00063013,120]
[358506303,1745220640364,-500.0,0.00063013,120]
[358506304,1745220640374,-508.92842956,0.00063013,120]
[358506305,1745220640383,-528.53,0.00063013,120]
[358506306,1745220640392,-500.0,0.00063013,120]
[358506307,1745220640401,-511.2095851,0.00063013,120]
[358506308,1745220640410,-500.0,0.00063013,120]
[358506309,1745220640420,-500.0,0.00063013,120]
[358506310,1745220640429,-519.68035074,0.00063013,120]
[358506311,1745220640438,-500.0,0.00063013,120]